bitfinex/quotes_BTCUSD_20240826
["timestamp","ask_amount","ask_price","bid_price","bid_amount"]
[1724679144957,0.15672,63808.0,63804.0,0.156729]
[1724679145127,0.156725,63806.0,63802.0,0.000827]
[1724679145363,0.001,63807.0,63802.0,0.000827]
[1724679145746,0.86076,63803.0,63802.0,0.000827]
[1724679146138,1.33040201,63803.0,63802.0,0.000827]
[1724679147302,1.70736601,63803.0,63802.0,0.000827]
[1724679147511,1.50190201,63803.0,63802.0,0.000827]
[1724679147911,1.81536601,63803.0,63802.0,0.000827]
[1724679148148,2.1546528,63803.0,63802.0,0.000827]
[1724679148708,1.81536601,63803.0,63802.0,0.000827]
[1724679148915,1.80736601,63803.0,63802.0,0.000827]
[1724679149120,1.82436601,63803.0,63802.0,0.001827]
[1724679150104,1.50890201,63803.0,63802.0,0.001827]
[1724679151343,1.352724,63803.0,63802.0,0.001827]
[1724679151813,1.03926,63803.0,63802.0,0.001827]
[1724679151815,0.725796,63803.0,63802.0,0.001827]
[1724679152073,0.725796,63803.0,63802.0,0.158561]
[1724679152074,0.017,63803.0,63802.0,0.158561]
[1724679152302,0.017,63803.0,63802.0,0.53293]
[1724679152971,0.008,63803.0,63802.0,0.53293]
[1724679153181,0.156728,63805.0,63802.0,0.061727]
[1724679153383,0.16064949,63804.0,63802.0,0.061727]
[1724679153587,0.00718862,63804.0,63803.0,0.156732]
[1724679154056,0.156725,63806.0,63802.0,0.21846]
[1724679154354,0.313439,63809.0,63803.0,0.156732]
[1724679154587,0.00719401,63805.0,63803.0,0.156732]
[1724679154789,0.00391845,63804.0,63802.0,0.064727]
[1724679154963,0.00719093,63804.0,63802.0,0.064727]
[1724679155174,0.00719093,63804.0,63802.0,0.218461]
[1724679155388,0.313426,63811.0,63802.0,0.061727]
[1724679155568,0.313394,63818.0,63810.0,0.313427]
[1724679155767,0.156701,63816.0,63812.0,0.156709]
[1724679155968,0.00090971,63820.0,63810.0,0.393627]
[1724679156212,0.00090971,63820.0,63815.0,0.156702]
[1724679156213,0.156694,63819.0,63815.0,0.156702]
[1724679156407,0.156694,63819.0,63816.0,0.1567]
[1724679156617,0.156712,63812.0,63810.0,0.0802]
[1724679156771,0.313415,63813.0,63810.0,0.0802]
[1724679156994,0.00078486,63811.0,63810.0,0.0802]
[1724679157192,0.00090971,63820.0,63811.0,0.313425]
[1724679157461,0.00090971,63820.0,63814.0,0.156704]
[1724679157462,0.156695,63818.0,63814.0,0.156704]
[1724679157737,0.156705,63815.0,63810.0,0.0802]
[1724679157984,0.32063296,63817.0,63810.0,0.236913]
[1724679158276,0.32063296,63817.0,63810.0,0.0802]
[1724679158277,0.156703,63815.0,63810.0,0.0802]
[1724679158580,0.01123609,63814.0,63804.0,0.0775]
[1724679158831,0.156724,63807.0,63803.0,0.156732]
[1724679159104,0.156724,63807.0,63802.0,0.061727]
[1724679159105,0.156724,63807.0,63804.0,0.156729]
[1724679159376,0.318427,63811.0,63802.0,0.21846]
[1724679159377,0.16404588,63806.0,63802.0,0.21846]
[1724679159600,0.16404588,63806.0,63802.0,0.061727]
[1724679159601,0.156728,63805.0,63802.0,0.061727]
[1724679159801,0.00732088,63806.0,63802.0,0.218461]
[1724679160036,0.156725,63806.0,63802.0,0.218461]
[1724679160257,0.16405427,63805.0,63802.0,0.061727]
[1724679160462,0.00732627,63805.0,63802.0,0.061727]
[1724679160687,0.00078109,63804.0,63803.0,0.470196]
[1724679160919,0.00078109,63804.0,63803.0,0.156732]
[1724679161543,0.001,63806.0,63803.0,0.156732]
[1724679161746,0.00733746,63804.0,63803.0,0.156732]
[1724679161886,0.001,63805.0,63803.0,0.156732]
[1724679162111,0.156722,63807.0,63804.0,0.156729]
[1724679162548,0.001,63805.0,63802.0,0.227459]
[1724679163022,0.001,63805.0,63803.0,0.313464]
[1724679163223,0.001,63805.0,63804.0,0.163728]
[1724679163426,0.001,63807.0,63804.0,0.163728]
[1724679163846,0.156711,63812.0,63808.0,0.156718]
[1724679164079,0.00090751,63813.0,63812.0,0.15671]
[1724679164287,0.00090751,63813.0,63812.0,0.68770801]
[1724679164521,0.00090751,63813.0,63812.0,1.02412801]
[1724679164717,0.00090751,63813.0,63812.0,1.04117567]
[1724679165149,0.00090751,63813.0,63812.0,1.77208246]
[1724679165587,0.00090751,63813.0,63812.0,1.43279567]
[1724679166012,0.00190751,63813.0,63812.0,1.43279567]
[1724679166226,0.00090751,63813.0,63812.0,1.43279567]
[1724679166656,0.00290751,63813.0,63812.0,1.44679567]
[1724679167070,0.00290751,63813.0,63812.0,1.43279567]
[1724679167275,0.00190751,63813.0,63812.0,1.43279281]
[1724679167486,0.00190751,63813.0,63812.0,1.7730796]
[1724679167909,0.00090751,63813.0,63812.0,2.1864996]
[1724679168119,0.00090971,63820.0,63819.0,1.411237]
[1724679168325,0.00090971,63827.0,63826.0,0.548426]
[1724679168529,0.00090971,63827.0,63826.0,1.76170181]
[1724679168742,0.00090971,63827.0,63826.0,2.12011624]
[1724679168961,0.00090971,63827.0,63826.0,2.43737396]
[1724679169168,0.00090971,63827.0,63826.0,2.56870808]
[1724679169368,0.00090971,63827.0,63826.0,2.54510303]
[1724679169636,0.00190971,63827.0,63826.0,2.55910303]
[1724679170204,0.00190971,63827.0,63826.0,2.57310303]
[1724679170728,0.00190971,63827.0,63826.0,2.55605823]
[1724679170901,0.00190971,63827.0,63826.0,2.57308597]
[1724679171352,0.00090971,63827.0,63826.0,2.24573497]
[1724679171555,0.00090971,63827.0,63826.0,2.25973497]
[1724679171762,0.00090971,63827.0,63826.0,2.55908597]
[1724679171974,0.00090971,63846.0,63826.0,2.55908597]
[1724679171975,0.00090971,63846.0,63845.0,1.240303]
[1724679172182,0.00090971,63846.0,63845.0,1.41948101]
[1724679172412,0.00090971,63846.0,63845.0,1.46454444]
[1724679172615,0.00090971,63846.0,63845.0,1.15128644]
[1724679172823,0.00090971,63846.0,63845.0,1.10622301]
[1724679173029,0.00090971,63846.0,63845.0,0.64906501]
[1724679173836,0.00090971,63846.0,63845.0,0.96232301]
[1724679174534,0.00190971,63846.0,63845.0,0.97632301]
[1724679174943,0.00090971,63846.0,63845.0,0.64906501]
[1724679175091,0.00190971,63846.0,63845.0,0.66006501]
[1724679175296,0.00190971,63846.0,63845.0,0.97332301]
[1724679175501,0.00190971,63846.0,63845.0,1.36968101]
[1724679175708,0.00190971,63846.0,63845.0,1.38368101]
[1724679175908,0.00190971,63846.0,63845.0,1.76223901]
[1724679176109,0.00190971,63846.0,63845.0,2.07649701]
[1724679176309,0.00190971,63846.0,63845.0,1.89430244]
[1724679176887,0.00190971,63846.0,63845.0,2.23857955]
[1724679177156,0.00190971,63846.0,63845.0,1.92532155]
[1724679177361,0.00190971,63846.0,63845.0,1.92143363]
[1724679177566,0.00090971,63846.0,63845.0,1.86825812]
[1724679177772,0.00090971,63846.0,63845.0,1.92343363]
[1724679178235,0.00090971,63846.0,63845.0,1.86825812]
[1724679178765,0.00090971,63846.0,63845.0,1.88225812]
[1724679178967,0.00090971,63846.0,63845.0,1.91043363]
[1724679179145,0.00090971,63846.0,63845.0,1.87941452]
[1724679179351,0.00090971,63846.0,63845.0,1.89441452]
[1724679179566,0.00090971,63846.0,63845.0,1.90841452]
[1724679180082,0.00090971,63846.0,63845.0,2.20767252]
[1724679180491,0.00090971,63846.0,63845.0,2.22167252]
[1724679180690,0.00090971,63846.0,63845.0,2.20767252]
[1724679180890,0.00090971,63846.0,63845.0,1.85223901]
[1724679181109,0.00090971,63846.0,63845.0,1.86623901]
[1724679181448,0.00090971,63846.0,63845.0,1.89426527]
[1724679182267,0.00090971,63846.0,63845.0,1.90826527]
[1724679182734,0.00090971,63846.0,63845.0,1.89426527]
[1724679182930,0.00090971,63846.0,63845.0,2.19352327]
[1724679183144,0.00090971,63846.0,63845.0,2.20752327]
[1724679183769,0.00090971,63846.0,63845.0,2.21054104]
[1724679184160,0.00090971,63846.0,63845.0,2.23854104]
[1724679184374,0.00090971,63846.0,63845.0,2.22454104]
[1724679184713,0.00090971,63851.0,63850.0,2.21047379]
[1724679184900,0.00090971,63851.0,63850.0,2.54614233]
[1724679185868,0.00090971,63851.0,63850.0,2.56014233]
[1724679186074,0.00090971,63851.0,63850.0,2.87337633]
[1724679186467,0.00090971,63851.0,63850.0,2.88508212]
[1724679186659,0.00907501,63866.0,63865.0,1.89370679]
[1724679186779,0.00907501,63866.0,63865.0,2.4860448]
[1724679186985,0.00907501,63866.0,63865.0,2.53022305]
[1724679187209,0.00907501,63866.0,63865.0,2.54722657]
[1724679187641,0.00090861,63867.0,63866.0,2.177007]
[1724679187788,0.1,63872.0,63871.0,0.611196]
[1724679188120,0.1,63872.0,63871.0,1.87394526]
[1724679188290,0.00907501,63891.0,63883.0,0.0805]
[1724679188494,0.00907501,63891.0,63883.0,1.80199505]
[1724679188713,0.00907501,63891.0,63890.0,0.470557]
[1724679188921,0.00907501,63891.0,63890.0,2.53035205]
[1724679189126,0.00907501,63902.0,63894.0,1.159663]
[1724679189331,0.00907501,63902.0,63894.0,2.14677701]
[1724679189826,0.00907501,63902.0,63901.0,1.491328]
[1724679190031,0.00090751,63915.0,63908.0,0.865272]
[1724679190183,0.00090751,63915.0,63908.0,2.1497348]
[1724679190385,0.00090751,63915.0,63908.0,2.50686205]
[1724679190613,0.00090751,63915.0,63908.0,2.81981105]
[1724679190901,0.0004,63919.0,63918.0,0.23395]
[1724679191078,0.28588408,63931.0,63930.0,0.470263]
[1724679191291,0.28588408,63931.0,63930.0,1.82526701]
[1724679191292,0.009086,63931.0,63930.0,1.82526701]
[1724679191530,0.009086,63931.0,63930.0,1.86543861]
[1724679191747,0.00907501,63948.0,63938.0,1.82519979]
[1724679191961,0.00907501,63948.0,63938.0,2.4771808]
[1724679192149,0.00907501,63948.0,63941.0,1.173058]
[1724679192370,0.00907501,63948.0,63947.0,1.88500179]
[1724679192584,0.00907501,63948.0,63947.0,2.5183599]
[1724679192802,0.00907501,63948.0,63947.0,2.2056009]
[1724679194259,0.00907501,63948.0,63947.0,1.9068419]
[1724679194465,0.00907501,63948.0,63947.0,1.10249611]
[1724679194682,0.00907501,63948.0,63947.0,1.06107501]
[1724679194888,0.00907501,63948.0,63947.0,0.32655701]
[1724679195087,0.00907501,63948.0,63947.0,0.96607501]
[1724679195499,0.00907501,63948.0,63947.0,1.3063618]
[1724679195767,0.00907501,63948.0,63947.0,1.6051208]
[1724679196237,0.00907501,63948.0,63947.0,1.7181208]
[1724679196495,0.00907501,63948.0,63947.0,1.37883401]
[1724679196726,0.00907501,63948.0,63947.0,1.37483401]
[1724679196934,0.00907501,63948.0,63947.0,1.38883401]
[1724679197143,0.00907501,63948.0,63947.0,1.7421208]
[1724679197346,0.00907501,63948.0,63947.0,2.0548798]
[1724679197538,0.00907501,63948.0,63947.0,2.2010798]
[1724679198368,0.00907501,63948.0,63947.0,2.1730798]
[1724679198575,0.00907501,63948.0,63947.0,2.1870798]
[1724679198779,0.00907501,63948.0,63947.0,2.2010798]
[1724679199337,0.00907501,63948.0,63947.0,2.1870798]
[1724679199974,0.00907501,63948.0,63947.0,2.1730798]
[1724679200170,0.00907501,63948.0,63947.0,2.1870798]
[1724679200378,0.00907501,63948.0,63947.0,2.2010798]
[1724679200589,0.00907501,63948.0,63947.0,2.1870798]
[1724679200924,0.075,63961.0,63958.0,0.781762]
[1724679201130,0.075,63961.0,63958.0,0.74823501]
[1724679201394,0.075,63961.0,63958.0,0.41253001]
[1724679201586,0.075,63961.0,63958.0,0.62523501]
[1724679202015,0.075,63961.0,63950.0,0.312742]
[1724679202016,0.312706,63958.0,63950.0,0.312742]
[1724679202221,0.07532462,63959.0,63951.0,0.15617801]
[1724679202468,0.00992409,63957.0,63951.0,0.15617801]
[1724679202670,0.15142449,63958.0,63957.0,0.00017699]
[1724679202927,0.0004,63959.0,63947.0,0.014]
[1724679202928,0.0765,63948.0,63947.0,0.014]
[1724679203125,0.0765,63948.0,63936.0,0.312808]
[1724679203126,0.156389,63943.0,63922.0,0.312877]
[1724679203326,0.156389,63943.0,63932.0,0.156414]
[1724679203327,0.237389,63943.0,63932.0,0.156414]
[1724679203753,0.0917058,63943.0,63930.0,0.312839]
[1724679203966,0.2480948,63943.0,63930.0,0.312839]
[1724679204379,0.5608728,63943.0,63922.0,0.312881]
[1724679204579,0.6268728,63943.0,63925.0,0.156432]
[1724679204814,0.9396508,63943.0,63925.0,0.156432]
[1724679205032,0.9396508,63943.0,63942.0,0.001823]
[1724679206268,0.9396508,63943.0,63942.0,0.000823]
[1724679206497,0.9396508,63943.0,63942.0,0.001823]
[1724679206705,0.9416508,63943.0,63942.0,0.001823]
[1724679206926,1.2524288,63943.0,63942.0,0.000823]
[1724679207145,1.2544288,63943.0,63942.0,0.001823]
[1724679208018,0.9416508,63943.0,63942.0,0.001823]
[1724679208477,1.2544288,63943.0,63942.0,0.001823]
[1724679208692,0.9416508,63943.0,63942.0,0.001823]
[1724679208919,1.2544288,63943.0,63942.0,0.001823]
[1724679209337,0.1597058,63943.0,63942.0,0.001823]
[1724679209547,0.1597058,63943.0,63942.0,0.31439201]
[1724679209772,0.1597058,63943.0,63942.0,0.18100101]
[1724679210012,0.0127058,63943.0,63942.0,0.65017501]
[1724679210218,0.002,63943.0,63942.0,0.96295801]
[1724679210450,0.0808,63956.0,63955.0,0.156359]
[1724679210665,0.0808,63956.0,63955.0,0.96097501]
[1724679210874,0.0004,63959.0,63958.0,1.094467]
[1724679211081,0.0004,63959.0,63958.0,1.27464501]
[1724679211284,0.0004,63959.0,63958.0,1.27364501]
[1724679211521,0.0004,63959.0,63958.0,0.96094001]
[1724679211740,0.0004,63959.0,63958.0,1.27364501]
[1724679211952,0.0004,63959.0,63958.0,1.27464501]
[1724679212154,0.0014,63959.0,63958.0,1.27464501]
[1724679212357,0.0004,63959.0,63958.0,1.28864501]
[1724679212766,0.00018878,63969.0,63968.0,0.156328]
[1724679212975,0.00018878,63969.0,63968.0,0.64816201]
[1724679213189,0.00018878,63969.0,63968.0,0.96081801]
[1724679213391,0.00018878,63969.0,63968.0,1.27347401]
[1724679214200,0.00018878,63969.0,63968.0,1.27447401]
[1724679214435,0.00018878,63969.0,63968.0,1.36377401]
[1724679214641,0.00018878,63969.0,63968.0,1.35477401]
[1724679214832,0.00018878,63969.0,63968.0,1.36077401]
[1724679214969,0.00018878,63969.0,63968.0,1.37477401]
[1724679215214,0.00018878,63969.0,63968.0,1.36877401]
[1724679215423,0.0152505,63975.0,63974.0,0.781567]
[1724679215625,0.0152505,63975.0,63974.0,0.96074501]
[1724679215828,0.0152505,63975.0,63974.0,1.27337201]
[1724679216062,0.0152505,63975.0,63974.0,0.96074501]
[1724679217059,0.0152505,63975.0,63974.0,0.64811801]
[1724679217218,0.0152505,63975.0,63974.0,0.66211801]
[1724679217631,0.0152505,63975.0,63974.0,0.64811801]
[1724679217831,0.0152505,63975.0,63974.0,0.66211801]
[1724679218266,0.0152505,63975.0,63974.0,0.96074501]
[1724679218676,0.0152505,63975.0,63974.0,0.97474501]
[1724679218891,0.0152505,63975.0,63974.0,0.67611801]
[1724679219098,0.0152505,63975.0,63974.0,0.98874501]
[1724679219313,0.0152505,63975.0,63974.0,0.67611801]
[1724679219513,0.0152505,63975.0,63974.0,0.66211801]
[1724679219732,0.0152505,63975.0,63974.0,0.67611801]
[1724679219943,0.2345615,63975.0,63974.0,0.014]
[1724679220164,0.55766206,63975.0,63974.0,0.028]
[1724679220373,0.24504006,63975.0,63974.0,0.028]
[1724679220584,0.08872906,63975.0,63974.0,0.028]
[1724679220794,0.08872906,63975.0,63974.0,0.34049101]
[1724679220993,0.08872906,63975.0,63974.0,0.31249101]
[1724679221525,0.08872906,63975.0,63974.0,0.62511801]
[1724679221725,0.02672906,63975.0,63974.0,0.18317801]
[1724679221941,0.33835106,63975.0,63974.0,0.004]
[1724679222068,0.156318,63973.0,63968.0,0.156327]
[1724679222273,0.156318,63972.0,63969.0,0.17917801]
[1724679222469,0.156323,63970.0,63969.0,0.17917801]
[1724679222668,0.0104781,63972.0,63969.0,0.17917801]
[1724679222907,0.156323,63970.0,63969.0,0.17917801]
[1724679223119,0.47944789,63970.0,63969.0,0.17917801]
[1724679223318,0.16680189,63970.0,63969.0,0.17917801]
[1724679223520,0.55984789,63970.0,63969.0,0.023]
[1724679223723,0.24720289,63970.0,63964.0,0.312674]
[1724679223926,0.24720289,63970.0,63969.0,0.156325]
[1724679223927,0.01047889,63970.0,63969.0,0.156325]
[1724679224152,0.0161558,63975.0,63974.0,0.156313]
[1724679224398,0.02663271,63975.0,63974.0,0.62511801]
[1724679224604,0.02663271,63975.0,63974.0,0.17917801]
[1724679224808,0.1724668,63975.0,63974.0,0.023]
[1724679225017,0.1724668,63975.0,63969.0,0.005]
[1724679225018,0.1568558,63975.0,63969.0,0.005]
[1724679225223,0.312661,63967.0,63956.0,0.312714]
[1724679225431,0.16737374,63975.0,63963.0,0.156339]
[1724679225641,0.6257888,63975.0,63974.0,0.009]
[1724679225828,0.156344,63962.0,63957.0,0.156354]
[1724679226062,0.0808,63961.0,63958.0,0.31335101]
[1724679226273,0.0808,63961.0,63958.0,0.15700101]
[1724679226482,0.53025,63959.0,63958.0,0.000823]
[1724679226697,0.0612,63959.0,63958.0,0.157175]
[1724679226900,0.0612,63959.0,63958.0,0.46988]
[1724679227120,0.0612,63959.0,63958.0,0.782585]
[1724679227325,0.0808,63961.0,63960.0,0.469042]
[1724679227540,0.0808,63961.0,63960.0,0.93791501]
[1724679227715,0.0808,63961.0,63960.0,0.62522001]
[1724679227969,0.0808,63961.0,63960.0,0.17917801]
[1724679228190,0.0808,63961.0,63960.0,0.33552501]
[1724679228388,0.0808,63961.0,63960.0,0.64822001]
[1724679228538,0.0808,63961.0,63960.0,0.65722001]
[1724679229128,0.08061182,63961.0,63960.0,0.66522001]
[1724679229321,0.08061182,63961.0,63960.0,0.97791501]
[1724679229529,0.0652,63966.0,63965.0,0.156335]
[1724679229726,0.0652,63966.0,63965.0,0.33551301]
[1724679229928,0.0652,63966.0,63965.0,0.64818301]
[1724679230581,0.0652,63966.0,63965.0,0.33751301]
[1724679230780,0.0652,63966.0,63965.0,0.65018301]
[1724679230978,0.0652,63966.0,63965.0,0.65318301]
[1724679231228,0.0161558,63975.0,63968.0,0.312656]
[1724679231229,0.0625,63972.0,63968.0,0.312656]
[1724679231563,0.0625,63972.0,63971.0,0.781602]
[1724679231778,0.0625,63972.0,63971.0,0.804602]
[1724679231994,0.0161558,63975.0,63971.0,0.804602]
[1724679231995,0.0161558,63975.0,63974.0,0.46894]
[1724679232204,0.0161558,63975.0,63974.0,0.64811801]
[1724679232808,0.0161558,63975.0,63974.0,0.33549101]
[1724679233025,0.0161558,63975.0,63974.0,0.64811801]
[1724679233230,0.02666487,63975.0,63974.0,0.96074501]
[1724679233431,0.0161558,63975.0,63974.0,0.96074501]
[1724679233634,0.0161558,63975.0,63974.0,1.27337201]
[1724679233840,0.0161558,63975.0,63974.0,0.96074501]
[1724679234841,0.0161558,63975.0,63974.0,0.97474501]
[1724679235053,0.0161558,63975.0,63974.0,0.98874501]
[1724679235486,0.0161558,63975.0,63974.0,1.30137201]
[1724679236682,0.0161558,63975.0,63974.0,0.98874501]
[1724679237925,0.0981558,63975.0,63974.0,0.98874501]
[1724679238252,0.0981558,63975.0,63974.0,0.49694]
[1724679238660,0.0981558,63975.0,63974.0,0.809567]
[1724679238848,0.10883387,63975.0,63974.0,0.809567]
[1724679239073,0.0981558,63975.0,63974.0,0.795567]
[1724679239251,0.0981558,63975.0,63974.0,0.46894]
[1724679239481,0.0981558,63975.0,63974.0,0.009]
[1724679239594,0.0981558,63975.0,63974.0,0.47794]
[1724679239810,0.10883387,63975.0,63974.0,0.49194]
[1724679240023,0.17493387,63975.0,63970.0,0.312645]
[1724679240231,0.17493387,63975.0,63972.0,0.156317]
[1724679240482,0.64777473,63975.0,63974.0,0.008]
[1724679240685,0.96039673,63975.0,63974.0,0.008]
[1724679240899,1.26911087,63975.0,63974.0,0.008]
[1724679241113,0.95648887,63975.0,63974.0,0.008]
[1724679241318,0.17493387,63975.0,63974.0,0.008]
[1724679241532,0.17493387,63975.0,63974.0,0.800567]
[1724679241735,0.1642558,63975.0,63974.0,0.47994]
[1724679241949,0.1642558,63975.0,63974.0,0.167313]
[1724679241950,0.17489959,63975.0,63974.0,0.167313]
[1724679242158,0.17489959,63975.0,63974.0,0.48394]
[1724679242370,0.10879959,63975.0,63974.0,0.171313]
[1724679242569,0.10879959,63975.0,63974.0,0.49194]
[1724679242776,0.10879959,63975.0,63974.0,0.179313]
[1724679242981,0.10879959,63975.0,63974.0,0.184313]
[1724679243182,0.10879959,63975.0,63974.0,0.028]
[1724679243389,0.10879959,63975.0,63974.0,0.184313]
[1724679243823,0.10879959,63975.0,63974.0,0.49694]
[1724679244025,0.02679959,63975.0,63974.0,0.96974501]
[1724679244228,0.0161558,63975.0,63974.0,0.96974501]
[1724679244442,0.0161558,63975.0,63974.0,0.96074501]
[1724679244842,0.0161558,63975.0,63974.0,0.97074501]
[1724679245244,0.0161558,63975.0,63974.0,0.97674501]
[1724679245502,0.0161558,63975.0,63974.0,0.96074501]
[1724679245703,0.0161558,63975.0,63974.0,0.96974501]
[1724679245949,0.0161558,63975.0,63974.0,0.97774501]
[1724679246352,0.0161558,63975.0,63974.0,0.96874501]
[1724679247570,0.0161558,63975.0,63974.0,1.28137201]
[1724679247973,0.0161558,63975.0,63974.0,1.29337201]
[1724679248360,0.0161558,63975.0,63974.0,1.28137201]
[1724679248611,0.0161558,63975.0,63974.0,0.98274501]
[1724679249022,0.0161558,63975.0,63974.0,1.29537201]
[1724679249230,0.1545558,63975.0,63974.0,0.014]
[1724679249438,0.1545558,63975.0,63974.0,0.33749101]
[1724679249439,0.0941558,63975.0,63974.0,0.33749101]
[1724679249642,0.10479841,63975.0,63974.0,0.65011801]
[1724679249844,0.10479841,63975.0,63974.0,0.95174501]
[1724679250050,0.02679841,63975.0,63974.0,1.26437201]
[1724679250259,0.0161558,63975.0,63974.0,1.27737201]
[1724679250462,0.0161558,63975.0,63974.0,0.95174501]
[1724679250675,0.0161558,63975.0,63974.0,0.197313]
[1724679250886,0.0931558,63975.0,63974.0,0.041]
[1724679251090,0.47660028,63975.0,63961.0,0.000823]
[1724679251354,0.156319,63972.0,63968.0,0.156326]
[1724679251574,0.16397828,63975.0,63969.0,0.15617801]
[1724679251781,0.1533558,63975.0,63974.0,0.156313]
[1724679251983,0.01596765,63975.0,63974.0,0.93774501]
[1724679252214,0.01596765,63975.0,63974.0,0.93974501]
[1724679252437,0.01596765,63975.0,63974.0,0.96274501]
[1724679252644,0.01596765,63975.0,63974.0,1.27737201]
[1724679252942,0.01596765,63975.0,63974.0,1.27337201]
[1724679253308,0.01596765,63975.0,63974.0,1.27537201]
[1724679253732,0.01596765,63975.0,63974.0,1.27937201]
[1724679254383,0.01596765,63975.0,63974.0,1.35917201]
[1724679254610,0.01596765,63975.0,63974.0,1.27737201]
[1724679254815,0.01596765,63975.0,63974.0,0.96974501]
[1724679255454,0.01596765,63975.0,63974.0,0.96074501]
[1724679255657,0.01596765,63975.0,63974.0,0.97174501]
[1724679255876,0.01596765,63975.0,63974.0,0.98174501]
[1724679257760,0.01596765,63975.0,63974.0,0.35649101]
[1724679257988,0.01596765,63975.0,63974.0,0.20017801]
[1724679258199,0.02658095,63975.0,63974.0,0.021]
[1724679258616,0.02658095,63975.0,63974.0,0.177313]
[1724679259256,0.02658095,63975.0,63974.0,0.021]
[1724679259473,0.02658095,63975.0,63974.0,0.48994]
[1724679259696,0.02658095,63975.0,63974.0,0.51294]
[1724679260582,0.02658095,63975.0,63974.0,0.66911801]
[1724679260798,0.02658095,63975.0,63974.0,0.98174501]
[1724679261021,0.01596765,63975.0,63974.0,1.29437201]
[1724679262068,0.01596765,63975.0,63974.0,1.36067201]
[1724679262282,0.01596765,63975.0,63974.0,1.29437201]
[1724679263121,0.01596765,63975.0,63974.0,0.98174501]
[1724679264584,0.01596765,63975.0,63974.0,0.66911801]
[1724679264585,0.09496765,63975.0,63974.0,0.66911801]
[1724679264829,0.25127865,63975.0,63974.0,0.044]
[1724679265103,0.09496765,63975.0,63974.0,0.200313]
[1724679265373,0.10555466,63975.0,63974.0,0.51294]
[1724679265832,0.10555466,63975.0,63974.0,0.023]
[1724679266089,0.10555466,63975.0,63974.0,0.01]
[1724679266339,0.10555466,63975.0,63974.0,0.033]
[1724679267323,0.10555466,63975.0,63974.0,0.189313]
[1724679268249,0.10555466,63975.0,63974.0,0.033]
[1724679268460,0.94720966,63975.0,63974.0,0.01]
[1724679268689,1.82963167,63975.0,63974.0,0.01]
[1724679268914,1.546082,63962.0,63961.0,0.000823]
[1724679269121,1.79796425,63962.0,63961.0,0.000823]
[1724679269329,1.71506669,63962.0,63961.0,0.000823]
[1724679269532,1.65053222,63962.0,63961.0,0.000823]
[1724679269946,1.55688868,63962.0,63961.0,0.000823]
[1724679270149,1.65053222,63962.0,63961.0,0.000823]
[1724679270351,1.55688868,63962.0,63961.0,0.000823]
[1724679270772,1.55688868,63962.0,63942.0,0.000823]
[1724679270773,1.40715,63959.0,63942.0,0.000823]
[1724679271000,0.611767,63943.0,63942.0,0.000823]
[1724679271231,1.237323,63943.0,63942.0,0.000823]
[1724679271458,1.24798305,63943.0,63942.0,0.000823]
[1724679271679,1.86574433,63943.0,63942.0,0.000823]
[1724679271945,2.24873024,63943.0,63942.0,0.000823]
[1724679272161,0.302667,63911.0,63910.0,0.00825]
[1724679272375,0.615602,63911.0,63910.0,0.00825]
[1724679272588,0.93919489,63911.0,63910.0,0.00825]
[1724679272803,1.25212989,63911.0,63910.0,0.00825]
[1724679273878,1.4083079,63911.0,63910.0,0.00825]
[1724679274096,1.4083079,63911.0,63910.0,0.00925]
[1724679274097,1.98837458,63911.0,63910.0,0.00925]
[1724679274315,0.925195,63898.0,63897.0,0.00825]
[1724679274541,1.7336578,63898.0,63897.0,0.00825]
[1724679274745,1.74351367,63898.0,63897.0,0.00825]
[1724679275172,2.05651167,63898.0,63897.0,0.00825]
[1724679275404,2.05651167,63898.0,63862.0,0.4716]
[1724679275405,0.156545,63879.0,63862.0,0.4716]
[1724679275614,1.3543918,63879.0,63858.0,0.156596]
[1724679275901,2.15886629,63879.0,63852.0,0.4716]
[1724679276126,1.84377529,63879.0,63852.0,0.4716]
[1724679276360,1.84377529,63879.0,63859.0,0.156593]
[1724679276361,1.84577529,63879.0,63859.0,0.156593]
[1724679276565,1.84577529,63879.0,63859.0,0.156594]
[1724679276773,1.84577529,63879.0,63878.0,0.01623]
[1724679276990,1.84377529,63879.0,63878.0,0.01623]
[1724679277203,1.84377529,63879.0,63878.0,0.01723]
[1724679277204,1.1963975,63879.0,63878.0,0.01723]
[1724679277673,1.53768429,63879.0,63878.0,0.01723]
[1724679277892,2.00690697,63879.0,63878.0,0.01723]
[1724679278101,0.78306,63852.0,63838.0,0.0646]
[1724679278310,0.85926,63852.0,63837.0,0.156648]
[1724679278513,0.93628455,63852.0,63838.0,0.156645]
[1724679278738,0.93628455,63852.0,63840.0,0.15664]
[1724679278948,0.93628455,63852.0,63838.0,0.156645]
[1724679279162,0.93628455,63852.0,63840.0,0.15664]
[1724679279378,1.50768656,63852.0,63831.0,0.0004]
[1724679280049,1.19346256,63852.0,63833.0,0.413317]
[1724679280261,1.19346256,63852.0,63839.0,0.156643]
[1724679280471,1.19346256,63852.0,63837.0,0.313295]
[1724679280691,0.30983655,63852.0,63845.0,0.156628]
[1724679280926,0.15322455,63852.0,63845.0,0.313257]
[1724679281147,0.30983655,63852.0,63847.0,0.156623]
[1724679281364,0.62806055,63852.0,63851.0,0.0014]
[1724679281580,0.01552455,63852.0,63851.0,0.0014]
[1724679281795,0.01552455,63852.0,63851.0,0.471243]
[1724679282015,0.01052455,63852.0,63851.0,0.493243]
[1724679282231,0.156593,63860.0,63855.0,0.156603]
[1724679282436,0.006,63852.0,63851.0,0.807295]
[1724679282668,0.014,63852.0,63851.0,0.002223]
[1724679282879,0.014,63852.0,63851.0,0.001223]
[1724679282880,1.096284,63852.0,63851.0,0.001223]
[1724679283108,1.25310194,63852.0,63851.0,0.001223]
[1724679283319,1.41027995,63852.0,63851.0,0.001223]
[1724679283787,1.40927995,63852.0,63851.0,0.001223]
[1724679284040,1.41727995,63852.0,63851.0,0.002223]
[1724679284459,1.40927995,63852.0,63851.0,0.001223]
[1724679284894,1.41427995,63852.0,63851.0,0.002223]
[1724679285515,1.51427995,63852.0,63851.0,0.002223]
[1724679285724,1.52127995,63852.0,63851.0,0.003223]
[1724679286787,1.5173642,63852.0,63851.0,0.003223]
[1724679287213,1.8315882,63852.0,63851.0,0.003223]
[1724679287659,1.8325882,63852.0,63851.0,0.003223]
[1724679288071,1.8305882,63852.0,63851.0,0.003223]
[1724679288316,1.35618619,63852.0,63851.0,0.002223]
[1724679288751,1.37018619,63852.0,63851.0,0.002223]